bitfinex-derivatives/quotes_SOLF0:USTF0_20241021
["timestamp","ask_amount","ask_price","bid_price","bid_amount"]
[1729553546712,9.21,166.28,166.24,1.2444]
[1729553547315,3.01214743,166.3,166.24,1.2444]
[1729553547512,4.58,166.32,166.24,10.4544]
[1729553547710,9.21,166.28,166.24,10.4544]
[1729553547916,12.28349708,166.28,166.24,10.4544]
[1729553548318,9.21,166.27,166.22,13.79]
[1729553548819,3.0086,166.25,166.23,9.21]
[1729553549524,3.0083,166.27,166.23,9.21]
[1729553549722,9.21,166.28,166.23,9.21]
[1729553550221,3.0085,166.26,166.23,9.21]
[1729553552922,3.0085,166.25,166.23,9.21]
[1729553554434,3.0078,166.3,166.25,3.0085]
[1729553554723,7.55767778,166.32,166.26,9.21]
[1729553554925,9.21,166.31,166.26,9.21]
[1729553555126,3.0079,166.29,166.26,9.21]
[1729553555327,1.3495,166.35,166.28,9.21]
[1729553555522,9.21,166.33,166.28,9.21]
[1729553555727,1.3495,166.35,166.28,9.21]
[1729553555930,9.21,166.33,166.28,9.21]
[1729553556325,3.0074,166.32,166.28,9.21]
[1729553556726,4.58,166.37,166.31,9.21]
[1729553556921,3.007,166.34,166.31,9.21]
[1729553557433,1.2778,166.42,166.31,9.21]
[1729553557635,9.21,166.38,166.32,9.21]
[1729553557833,9.21,166.38,166.3,4.58]
[1729553557834,9.21,166.38,166.33,9.21]
[1729553558133,3.0062,166.38,166.34,13.83]
[1729553558536,3.0062,166.38,166.36,9.21]
[1729553564537,9.21,166.4,166.34,4.62]
[1729553564744,1.2778,166.42,166.36,9.21]
[1729553564938,9.21,166.41,166.36,9.21]
[1729553565239,3.0061,166.39,166.36,9.21]
[1729553567243,9.21,166.41,166.36,9.21]
[1729553567445,3.0062,166.38,166.36,9.21]
[1729553568442,9.21,166.41,166.36,9.21]
[1729553568644,3.0061,166.39,166.36,9.21]
[1729553570144,4.62,166.43,166.38,9.21]
[1729553570339,1.3132,166.47,166.42,9.21]
[1729553571545,3.0052,166.44,166.42,9.21]
[1729553573640,3.0052,166.44,166.42,13.83]
[1729553574643,1.276,166.51,166.42,13.83]
[1729553574844,9.21,166.52,166.47,9.21]
[1729553575044,3.0044,166.49,166.47,9.21]
[1729553575348,9.21,166.52,166.47,9.21]
[1729553575649,3.0046,166.47,166.45,9.21]
[1729553576950,3.0051,166.44,166.4,3.0057]
[1729553577149,3.0051,166.44,166.43,4.62]
[1729553577554,3.0055,166.42,166.41,4.62]
[1729553578146,9.21,166.45,166.4,9.21]
[1729553578351,9.21,166.42,166.38,1.2358]
[1729553578654,9.21,166.42,166.38,4.62]
[1729553578852,9.21,166.42,166.37,9.21]
[1729553579155,9.21,166.42,166.37,13.83]
[1729553579156,3.006,166.4,166.37,13.83]
[1729553579353,5.96656823,166.4,166.37,13.83]
[1729553579549,3.006,166.4,166.37,13.83]
[1729553579749,3.0056,166.42,166.39,9.21]
[1729553579951,3.02999176,166.44,166.41,9.21]
[1729553580545,9.21,166.45,166.41,9.21]
[1729553580749,3.0053,166.43,166.41,9.21]
[1729553581456,3.0053,166.43,166.39,4.62]
[1729553581457,3.0058,166.41,166.39,4.62]
[1729553584156,9.21,166.43,166.39,4.62]
[1729553584360,3.0058,166.4,166.39,4.62]
[1729553589957,3.0058,166.4,166.38,9.21]
[1729553602068,3.0058,166.4,166.37,4.54]
[1729553602274,3.0058,166.4,166.38,9.21]
[1729553602566,3.0058,166.4,166.37,4.54]
[1729553602768,3.0058,166.4,166.38,9.21]
[1729553607074,9.21,166.4,166.28,2.9512218]
[1729553607268,9.21,166.37,166.29,8.414]
[1729553607470,9.21,166.36,166.3,13.75]
[1729553607685,3.0069,166.35,166.3,13.75]
[1729553607868,3.03427339,166.35,166.3,13.75]
[1729553608069,9.21,166.36,166.3,13.75]
[1729553608264,3.0073,166.32,166.3,13.75]
[1729553608468,2.9915795,166.32,166.3,13.75]
[1729553608675,9.21,166.36,166.3,13.75]
[1729553609076,12.23795951,166.36,166.3,13.75]
[1729553610877,3.0074,166.32,166.3,13.75]
[1729553612378,3.0074,166.31,166.3,4.54]
[1729553612876,3.0073,166.32,166.3,4.54]
[1729553613669,3.007,166.34,166.31,9.21]
[1729553614271,3.0071,166.33,166.31,9.21]
[1729553617585,3.0069,166.34,166.31,9.21]
[1729553619281,12.23795951,166.36,166.31,9.21]
[1729553619480,3.0071,166.33,166.31,9.21]
[1729553622277,12.23795951,166.36,166.3,6.04327494]
[1729553622475,3.0074,166.31,166.3,4.54]
[1729553622879,3.0073,166.32,166.3,4.54]
[1729553623275,6.0238964,166.32,166.3,4.54]
[1729553623482,3.0073,166.32,166.3,4.54]
[1729553624084,6.05468502,166.32,166.3,4.54]
[1729553624886,6.05468502,166.32,166.3,13.75]
[1729553625283,6.05468502,166.32,166.3,15.25328932]
[1729553625477,3.0074,166.31,166.3,6.04328932]
[1729553625682,9.21,166.35,166.3,15.25328932]
[1729553625884,12.25648298,166.35,166.3,15.25328932]
[1729553626077,12.25648298,166.35,166.3,6.04328932]
[1729553626282,12.25648298,166.35,166.3,15.25328932]
[1729553626477,12.25648298,166.35,166.3,6.04328932]
[1729553626683,9.21,166.31,166.3,1.50328932]
[1729553626881,9.21,166.31,166.24,9.21]
[1729553627077,9.21,166.29,166.24,9.21]
[1729553627287,9.21,166.29,166.21,4.44]
[1729553627582,9.21,166.29,166.24,9.21]
[1729553628286,3.0082,166.27,166.24,9.21]
[1729553629087,3.008,166.28,166.24,9.21]
[1729553629785,3.0085,166.26,166.22,4.44]
[1729553629989,9.21,166.29,166.22,4.44]
[1729553630191,9.21,166.29,166.23,9.21]
[1729553630692,9.21,166.29,166.25,9.21]
[1729553630988,3.0083,166.27,166.25,9.21]
[1729553631281,3.0083,166.27,166.22,4.44]
[1729553631481,3.0083,166.27,166.24,9.21]
[1729553631880,9.21,166.25,166.08,117.1841292]
[1729553632089,4.44,166.27,166.14,4.44]
[1729553632390,1.2677,166.34,166.17,3.0099]
[1729553632391,12.219,166.23,166.17,3.0099]
[1729553632588,15.26977362,166.23,166.18,9.21]
[1729553632780,12.219,166.23,166.18,9.21]
[1729553633790,3.009,166.23,166.18,9.21]
[1729553633992,3.009,166.23,166.19,9.21]
[1729553634193,12.23911559,166.24,166.19,9.21]
[1729553634491,3.02911559,166.24,166.21,9.21]
[1729553634694,9.21,166.26,166.21,9.21]
[1729553634989,3.0088,166.24,166.21,9.21]
[1729553635192,5.97395565,166.24,166.21,9.21]
[1729553635787,2.96515565,166.24,166.21,9.21]
[1729553635987,9.21,166.26,166.21,9.21]
[1729553636587,3.0087,166.25,166.21,9.21]
[1729553636785,6.04516381,166.25,166.21,9.21]
[1729553637287,3.03646381,166.25,166.21,9.21]
[1729553637482,3.0084,166.26,166.22,9.21]
[1729553637689,13.65,166.29,166.23,9.21]
[1729553638586,3.0082,166.27,166.23,9.21]
[1729553638991,3.0082,166.27,166.24,1.50335892]
[1729553639793,3.0084,166.26,166.24,1.50335892]
[1729553640393,12.2182,166.27,166.24,1.50335892]
[1729553641595,3.0082,166.27,166.24,1.50335892]
[1729553641797,9.21,166.28,166.24,1.50335892]
[1729553641798,12.218,166.28,166.24,1.50335892]
[1729553642699,3.0079,166.29,166.25,9.21]
[1729553643291,9.21,166.44,166.28,9.21]
[1729553643491,9.21,166.44,166.38,9.21]
[1729553643795,9.21,166.44,166.39,4.76]
[1729553643796,3.05348529,166.44,166.39,4.76]
[1729553643997,1.2728,166.46,166.39,4.76]
[1729553643998,9.21,166.43,166.39,4.76]
[1729553644293,3.0056,166.42,166.4,4.76]
[1729553644487,9.21,166.44,166.4,4.76]
[1729553644791,123.59020688,166.48,166.43,9.21]
[1729553644985,123.59020688,166.48,166.45,9.21]
[1729553644986,114.38020688,166.48,166.45,9.21]
[1729553645189,3.06100619,166.47,166.45,9.21]
[1729553645394,10.4828,166.53,166.46,4.76]
[1729553645695,3.0031,166.55,166.49,9.21]
[1729553645898,9.21,166.55,166.49,13.97]
[1729553646095,9.21,166.53,166.49,13.97]
[1729553646394,14.43,166.51,166.4,15.6746]
[1729553646898,3.0045,166.48,166.41,4.76]
[1729553648894,2.98137462,166.51,166.43,14.43]
[1729553649092,114.34243778,166.54,166.45,14.43]
[1729553649294,117.31780459,166.54,166.46,4.76]
[1729553649499,3.0036,166.53,166.46,7.7647]
[1729553650600,3.0037,166.52,166.46,7.7647]
[1729553650799,117.31780459,166.54,166.45,14.43]
[1729553651101,117.31780459,166.54,166.46,4.76]
[1729553651304,3.004,166.51,166.46,4.76]
[1729553651697,3.004,166.51,166.45,17.4349]
[1729553652002,3.004,166.51,166.47,4.76]
[1729553653804,3.0037,166.52,166.47,4.76]
[1729553654002,117.31780459,166.54,166.47,19.19]
[1729553654904,3.0035,166.53,166.47,22.1945]
[1729553655204,117.31780459,166.54,166.47,19.19]
[1729553655400,120.32120459,166.54,166.47,22.1945]
[1729553655601,117.31780459,166.54,166.47,22.1945]
[1729553656906,3.0035,166.53,166.47,22.1945]
[1729553657404,117.31780459,166.54,166.41,3.0055]
[1729553657405,3.0046,166.47,166.41,3.0055]
[1729553657601,3.0046,166.47,166.41,17.4355]
[1729553657906,14.43,166.51,166.42,4.76]
[1729553658401,14.43,166.51,166.43,4.76]
[1729553659001,3.0046,166.47,166.41,17.4355]
[1729553659306,3.0046,166.47,166.42,4.76]
[1729553661906,3.0046,166.47,166.41,17.4355]
[1729553662109,3.0048,166.46,166.42,4.76]
[1729553662306,3.0048,166.46,166.41,14.43]
[1729553662307,3.0048,166.46,166.43,4.76]
[1729553662706,3.03353415,166.45,166.43,4.76]
[1729553662909,3.03353415,166.45,166.41,14.43]
[1729553663112,3.03353415,166.45,166.42,4.76]
[1729553663506,3.0048,166.46,166.42,4.76]
[1729553664413,2.94999552,166.45,166.42,4.76]
[1729553664803,1.3224,166.5,166.42,4.76]
[1729553665809,1.3224,166.5,166.43,3.0051]
[1729553666010,1.3224,166.5,166.42,4.76]
[1729553666812,3.0044,166.48,166.43,3.0052]
[1729553667809,3.0043,166.49,166.43,3.0052]
[1729553669414,1.3224,166.5,166.41,14.43]
[1729553669607,1.3224,166.5,166.42,4.76]
[1729553669806,1.3224,166.5,166.43,14.43]
[1729553670313,3.0044,166.48,166.43,14.43]
[1729553672715,3.0042,166.49,166.44,3.0051]
[1729553672916,3.0042,166.49,166.43,14.43]
[1729553674013,3.0042,166.49,166.43,17.4352]
[1729553674508,117.31780459,166.54,166.42,4.76]
[1729553674509,3.004,166.5,166.45,17.4348]
[1729553674714,3.004,166.5,166.46,4.66]
[1729553676720,3.0057,166.41,166.34,3.0068]
[1729553676918,6.03052027,166.41,166.36,1.3116]
[1729553677713,9.03622027,166.41,166.37,4.66]
[1729553677918,3.0,166.41,166.37,4.66]
[1729553679919,3.0,166.41,166.37,19.09]
[1729553681218,3.0054,166.43,166.37,19.09]
[1729553683819,3.005,166.45,166.39,17.4359]
[1729553689033,3.0,166.46,166.41,17.4355]
[1729553689333,3.0,166.46,166.42,4.66]
[1729553690831,6.0048,166.46,166.42,4.66]
[1729553692830,3.0,166.46,166.42,4.66]
[1729553693128,3.0,166.46,166.43,1.3337]
[1729553694736,3.0,166.46,166.44,14.43]
[1729553696533,3.0,166.46,166.45,4.66]
[1729553697238,3.00498555,166.5,166.45,4.66]
[1729553697435,119.5094121,166.53,166.45,4.66]
[1729553697638,3.0038,166.52,166.46,17.4346]
[1729553697840,122.55411691,166.53,166.48,14.43]
[1729553698042,122.55411691,166.53,166.49,4.66]
[1729553698243,3.0038,166.52,166.49,4.66]
[1729553699635,3.0038,166.52,166.46,17.4347]
[1729553699636,14.43,166.5,166.27,9.01636106]
[1729553699839,14.43,166.45,166.34,14.43]
[1729553700036,17.36030078,166.45,166.34,19.09]
[1729553700341,3.006,166.39,166.34,19.09]
[1729553701143,17.36030078,166.45,166.28,1.33]
[1729553701144,14.43,166.42,166.35,4.66]
[1729553701945,17.4045067,166.42,166.35,4.66]
[1729553702834,3.0061,166.39,166.35,4.66]
[1729553703042,14.43,166.4,166.29,2.5014]
[1729553703342,14.43,166.4,166.3,4.66]
[1729553703547,3.0068,166.35,166.3,4.66]
[1729553707849,3.0069,166.34,166.3,4.66]
[1729553708751,3.0069,166.34,166.31,4.9]
[1729553709549,14.43,166.38,166.29,16.9314]
[1729553709750,3.0073,166.32,166.3,4.9]
[1729553710554,14.43,166.36,166.14,28.81808084]
[1729553710750,14.43,166.36,166.24,23.0683]
[1729553710950,14.43,166.34,166.24,23.0683]
[1729553711146,3.06868534,166.33,166.24,23.0683]
[1729553711559,3.008,166.28,166.25,4.9]
[1729553711758,3.008,166.28,166.24,18.1683]
[1729553711947,3.008,166.28,166.24,23.0683]
[1729553713952,14.43,166.39,166.27,14.43]
[1729553714157,14.43,166.39,166.29,14.43]
[1729553714158,4.9,166.38,166.29,14.43]
[1729553714756,3.0074,166.32,166.29,14.43]
[1729553715559,3.0071,166.33,166.29,14.43]
[1729553717561,5.97124814,166.33,166.29,14.43]
[1729553718058,5.97124814,166.33,166.28,4.9]
[1729553718273,2.96414814,166.33,166.28,19.33]
[1729553718453,19.33,166.39,166.28,19.33]
[1729553718758,3.0071,166.34,166.28,22.3379]
[1729553718952,3.04775541,166.33,166.28,22.3379]
[1729553719256,19.33,166.39,166.28,22.3379]
[1729553719860,3.0071,166.33,166.28,22.3379]
[1729553720456,14.43,166.39,166.28,22.3379]
[1729553720760,3.0069,166.34,166.3,14.43]
[1729553724260,3.0069,166.34,166.28,7.9079]
[1729553724463,3.0069,166.34,166.3,14.43]
[1729553724656,3.02080616,166.33,166.3,14.43]
[1729553724861,3.0069,166.34,166.3,14.43]
[1729553725356,2.99193921,166.33,166.3,14.43]
[1729553725960,3.0069,166.34,166.3,14.43]
[1729553726358,2.94533111,166.33,166.3,14.43]
[1729553726558,2.94533111,166.33,166.28,7.9079]
[1729553726758,3.0069,166.34,166.29,14.43]
[1729553727063,3.03824661,166.33,166.29,14.43]
[1729553727463,3.0069,166.34,166.29,14.43]
[1729553727963,3.0073,166.32,166.28,4.9]
[1729553728162,6.03610639,166.32,166.27,17.4381]
[1729553728363,3.0073,166.32,166.28,4.9]
[1729553728767,2.94220033,166.32,166.28,4.9]
[1729553729063,3.0078,166.29,166.28,4.9]
[1729553729267,3.0078,166.29,166.27,4.9]
[1729553729663,14.43,166.31,166.24,2.5073]
[1729553729862,14.43,166.28,166.19,2.5139]
[1729553730068,1.2471,166.31,166.2,19.33]
[1729553730364,4.9,166.33,166.26,14.43]
[1729553730566,7.83544069,166.33,166.26,14.43]
[1729553730768,3.0076,166.31,166.26,14.43]
[1729553731265,3.0076,166.31,166.25,7.9085]
[1729553731468,3.0076,166.31,166.26,14.43]
[1729553732170,3.0076,166.31,166.26,15.6959]
[1729553734177,2.93544069,166.33,166.28,14.43]
[1729553734464,19.33,166.37,166.28,14.43]
[1729553734666,3.0071,166.33,166.28,14.43]
[1729553734862,3.04192005,166.32,166.28,14.43]
[1729553736462,3.0071,166.33,166.28,14.43]
[1729553736671,3.01665843,166.32,166.29,4.76]
[1729553737370,6.02395843,166.32,166.29,4.76]
[1729553737566,3.0073,166.32,166.29,4.76]
[1729553738171,6.01974816,166.32,166.29,4.76]
[1729553738373,3.0076,166.31,166.29,4.76]
[1729553738674,19.33,166.37,166.29,4.76]
[1729553739575,4.9,166.37,166.29,4.76]
[1729553739877,4.9,166.37,166.3,14.43]
[1729553740074,3.0072,166.33,166.3,14.43]
[1729553740369,3.04823546,166.32,166.3,14.43]
[1729553741076,4.9,166.37,166.3,14.43]
[1729553741473,3.0073,166.32,166.3,14.43]
[1729553741674,5.98576527,166.32,166.3,14.43]
[1729553745179,1.2366,166.41,166.3,14.43]
[1729553745480,1.2366,166.41,166.34,14.43]
[1729553746868,3.0065,166.36,166.34,14.43]
[1729553750380,3.0065,166.36,166.35,9.24]
[1729553751174,3.0063,166.38,166.35,9.24]
[1729553751383,3.0063,166.38,166.37,9.24]
[1729553755581,3.0063,166.38,166.26,1.50356784]
[1729553755582,86.0,166.34,166.26,1.50356784]
[1729553755775,6.079,166.33,166.24,9.24]
[1729553755974,9.24,166.29,166.24,9.24]
[1729553756376,4.76,166.3,166.21,14.44]
[1729553757384,3.0083,166.27,166.21,14.44]
[1729553760280,1.319,166.33,166.23,14.44]
[1729553760683,4.76,166.32,166.23,14.44]
[1729553760877,3.0081,166.28,166.23,14.44]
[1729553761284,4.76,166.32,166.25,14.44]
[1729553761482,3.0076,166.31,166.24,3.0086]
[1729553761685,7.8205476,166.34,166.26,14.44]
[1729553762089,3.0076,166.31,166.27,1.3317]
[1729553762291,7.8205476,166.34,166.27,1.3317]
[1729553764487,3.0076,166.31,166.27,1.3317]
[1729553767494,3.0605476,166.34,166.3,14.44]
[1729553767697,14.44,166.41,166.3,14.44]
[1729553767997,140.01937683,166.45,166.3,14.44]
[1729553767998,14.44,166.39,166.3,14.44]
[1729553768199,17.4058904,166.39,166.3,14.44]
[1729553768604,22.3458904,166.39,166.3,14.44]
[1729553769805,3.0069,166.35,166.3,14.44]
[1729553770197,22.3458904,166.39,166.27,7.4911]
[1729553770399,22.3458904,166.39,166.27,21.9311]
[1729553770802,14.44,166.36,166.27,21.9311]
[1729553771701,14.44,166.32,166.11,6.0219]
[1729553771901,4.94,166.31,166.21,14.44]
[1729553772908,3.0086,166.25,166.21,14.44]
[1729553774198,3.0086,166.25,166.21,15.7569]
[1729553775207,3.0086,166.25,166.21,20.6969]
[1729553775802,3.0086,166.25,166.21,6.2569]
[1729553776001,3.0089,166.24,166.21,6.2569]
[1729553777204,3.0091,166.22,166.21,6.2569]
[1729553777404,3.0091,166.22,166.21,1.3169]
[1729553779204,3.0091,166.22,166.18,4.94]
[1729553780506,3.0091,166.22,166.17,15.698]
[1729553780810,3.0091,166.22,166.18,4.94]
[1729553781410,3.06870573,166.25,166.17,15.698]
[1729553781707,14.44,166.32,166.22,14.44]
[1729553781911,4.28543909,166.34,166.24,14.44]
[1729553782105,3.0074,166.32,166.25,1.258]
[1729553782312,2.99373909,166.34,166.26,14.44]
[1729553782516,1.3236,166.35,166.27,4.94]
[1729553782810,3.0079,166.29,166.27,4.94]
[1729553784309,18.73027034,166.35,166.27,4.94]
[1729553785211,3.0079,166.29,166.27,4.94]
[1729553787607,3.0079,166.29,166.25,1.258]
[1729553787608,3.0079,166.29,166.25,6.198]
[1729553792210,4.29027034,166.35,166.26,14.44]
[1729553793208,2.96667034,166.35,166.28,14.44]
[1729553793416,20.6284,166.4,166.3,14.44]
[1729553793720,3.0067,166.36,166.31,14.44]
[1729553794418,3.0067,166.35,166.31,14.44]
[1729553794812,19.38,166.4,166.31,14.44]
[1729553795117,19.38,166.4,166.32,1.3434]
[1729553795118,3.0064,166.37,166.32,1.3434]
[1729553795416,3.0064,166.37,166.33,4.94]
[1729553795813,3.0061,166.39,166.33,19.38]
[1729553796415,3.006,166.39,166.33,22.387]
[1729553797315,3.006,166.39,166.33,19.38]
[1729553798127,14.44,166.42,166.33,19.38]
[1729553798625,3.0062,166.38,166.33,19.38]
[1729553805530,3.95811889,166.44,166.35,14.44]
[1729553805531,17.42681889,166.44,166.35,14.44]
[1729553806232,9.24,166.42,166.37,9.24]
[1729553806931,3.0059,166.4,166.34,3.0068]
[1729553807142,9.24,166.4,166.34,9.24]
[1729553807736,3.0063,166.38,166.34,9.24]
[1729553807931,3.0063,166.38,166.36,9.24]
[1729553808240,9.24,166.41,166.37,9.24]
[1729553808538,3.006,166.39,166.37,9.24]
[1729553808741,9.24,166.43,166.37,9.24]
[1729553809131,3.0059,166.4,166.37,9.24]
[1729553809433,2.99314292,166.39,166.37,9.24]
[1729553812436,2.99314292,166.39,166.38,9.24]
[1729553813543,3.0057,166.41,166.38,9.24]
[1729553813741,3.0057,166.41,166.39,9.24]
[1729553814042,2.93272232,166.4,166.39,9.24]
[1729553816343,3.0057,166.41,166.39,9.24]
[1729553816845,6.032631,166.41,166.39,9.24]
[1729553817539,3.026931,166.41,166.39,9.24]
[1729553817747,3.06120355,166.45,166.39,9.24]
[1729553818042,10.5159,166.53,166.44,9.24]
[1729553818237,4.31395589,166.53,166.48,9.24]
[1729553818437,4.31395589,166.53,166.5,9.24]
[1729553818640,4.31395589,166.53,166.44,4.88]
[1729553818641,3.03805589,166.53,166.51,9.24]
[1729553818835,9.24,166.56,166.51,9.24]
[1729553819034,1.2759,166.61,166.53,9.24]
[1729553819236,9.24,166.58,166.53,9.24]
[1729553820139,4.88,166.6,166.5,14.12]
[1729553820140,3.0034,166.54,166.5,14.12]
[1729553820345,3.0034,166.54,166.5,4.88]
[1729553820642,14.42,166.59,166.5,4.88]
[1729553821246,3.0029,166.57,166.5,4.88]
[1729553821440,14.42,166.59,166.5,4.88]
[1729553822133,3.0036,166.53,166.5,4.88]
[1729553822442,3.06512178,166.52,166.49,15.7439]
[1729553822645,3.0038,166.52,166.49,20.6239]
[1729553822839,2.92934806,166.52,166.49,20.6239]
[1729553823139,14.42,166.59,166.49,20.6239]
[1729553823546,3.0036,166.53,166.49,20.6239]
[1729553823740,3.03898834,166.52,166.49,20.6239]
[1729553828845,6.04268834,166.52,166.49,20.6239]
[1729553830247,3.0037,166.52,166.49,20.6239]
[1729553830748,5.93454998,166.52,166.49,20.6239]
[1729553832846,5.93454998,166.52,166.45,15.6592]
[1729553832847,3.0042,166.49,166.45,15.6592]
[1729553833037,3.0042,166.49,166.46,4.74]
[1729553833345,2.93084998,166.52,166.44,1.2192]
[1729553833546,14.42,166.53,166.44,5.9592]
[1729553834142,17.45592762,166.53,166.44,5.9592]
[1729553835950,3.0045,166.48,166.44,5.9592]
[1729553837449,3.0046,166.47,166.44,5.9592]
[1729553837756,14.42,166.51,166.44,1.2192]
[1729553837957,3.005,166.45,166.42,4.74]
[1729553838146,2.9342654,166.45,166.42,4.74]
[1729553838347,14.42,166.51,166.42,4.74]
[1729553838641,17.3894153,166.51,166.42,4.74]
[1729553838949,17.3894153,166.51,166.42,7.7453]
[1729553839142,3.0043,166.49,166.42,4.74]
[1729553839340,17.3894153,166.51,166.42,4.74]
[1729553840046,2.9694153,166.51,166.43,14.42]
[1729553840242,4.74,166.52,166.45,14.42]
[1729553840642,6.04908818,166.51,166.46,4.74]
[1729553840849,3.0039,166.51,166.46,4.74]
[1729553841045,3.0039,166.51,166.46,6.0535]
[1729553841451,1.3253,166.54,166.46,6.0535]
[1729553841753,4.74,166.55,166.47,14.42]
[1729553842257,9.23,166.54,166.49,9.23]
[1729553842551,9.23,166.55,166.51,9.23]
[1729553843952,3.0036,166.53,166.51,9.23]
[1729553844148,6.0741287,166.53,166.51,9.23]
[1729553844852,3.0036,166.52,166.51,9.23]
[1729553850355,3.0036,166.52,166.47,1.3437]
[1729553850660,3.0039,166.51,166.48,9.23]
[1729553850852,9.23,166.52,166.47,9.23]
[1729553851049,12.23384347,166.52,166.47,9.23]
[1729553851453,3.004,166.5,166.47,9.23]
[1729553851654,12.23384347,166.52,166.47,9.23]
[1729553851956,3.004,166.5,166.47,9.23]
[1729553855861,2.97879259,166.5,166.48,9.23]
[1729553860671,3.0041,166.5,166.48,9.23]
[1729553860870,5.95495796,166.5,166.48,9.23]
[1729553862467,2.95085796,166.5,166.46,5.9135]
[1729553862668,9.23,166.51,166.46,5.9135]
[1729553862861,9.23,166.51,166.46,4.6]
[1729553862862,3.0043,166.49,166.46,4.6]
[1729553863071,5.93345815,166.49,166.46,4.6]
[1729553864464,5.93345815,166.49,166.45,9.23]
[1729553868572,2.72459619,166.63,166.48,9.23]
[1729553868771,9.23,166.54,166.32,9.01022942]
[1729553868970,9.23,166.54,166.24,8.3154651]
[1729553868971,9.23,166.5,166.45,9.23]
[1729553869165,3.0042,166.49,166.45,9.23]
[1729553869367,5.98725573,166.49,166.45,9.23]
[1729553870576,1.3491,166.53,166.45,9.23]
[1729553870877,3.004,166.51,166.46,9.23]
[1729553872375,6.03692394,166.52,166.46,9.23]
[1729553875776,6.03692394,166.52,166.48,9.23]
[1729553880483,3.0038,166.51,166.46,14.13]
[1729553880874,3.0038,166.51,166.46,4.9]
[1729553881067,3.0038,166.51,166.46,14.13]
[1729553882879,12.26322394,166.52,166.46,14.13]
[1729553883176,15.26692394,166.52,166.46,14.13]
[1729553883379,6.03692394,166.52,166.46,14.13]
[1729553883580,15.26692394,166.52,166.46,14.13]
[1729553884882,3.0038,166.51,166.46,14.13]
[1729553885284,3.0038,166.51,166.48,9.23]
[1729553885581,12.26322394,166.52,166.48,9.23]
[1729553885781,4.9,166.58,166.5,9.23]
[1729553885977,4.9,166.58,166.51,9.23]
[1729553886178,9.23,166.56,166.51,9.23]
[1729553886684,9.23,166.55,166.5,14.13]
[1729553886880,3.0245121,166.54,166.51,1.50189644]
[1729553887076,3.0245121,166.54,166.5,14.13]
[1729553887273,3.0245121,166.54,166.51,1.50188317]
[1729553888077,6.0278121,166.54,166.5,14.13]
[1729553888284,6.0278121,166.54,166.51,1.50189161]
[1729553889781,3.0245121,166.54,166.51,1.50189161]
[1729553890083,2.94917898,166.55,166.52,9.23]
[1729553890284,9.23,166.56,166.52,9.23]
[1729553890882,12.233,166.56,166.52,9.23]